{"text_format":"3","workbook":"xlsx","n_sheets":14,"sheets":["Rucher Citoyen","SOIRRE NX RC","répartition projets (2)","répartition projets","stat","départ non venue","départ  (2)","Réunions","départ "," interêt","Rucher Citoyen contact","Interview 2023","Tirage au sort 2024","Tirage au sort 2024 (2)"],"not_rendered":{"charts":15,"defined_names":12},"read":"whole","date_system":"1900"}

{"sheet":"Rucher Citoyen","index":0,"n_rows":38,"n_cols":58,"rows_kept":38}
["Nb","TAS V","Année arrivée","Bureau de vote","Q+G30D:J+D+D:AN","Civilité","Nom","Prénom","Rue","Tel","Mail","date naissance","Age","observation","Droit IMAGE","PARTICIPATION 17 JUIN","Réponse au sondage juin","GR CHARTE","Rencontre pers tirées au sort","Réunion pour pers TAS le 9/07/24","prépa 1 an mai","prépa 1 an du RC","préparation le 2 juillet à 9h30","Présent le 5/07\nFête 1 an","FETE 1 an RC\n 13/09 à 19h00","Stand Ranc-arts\n1er/06","LOGO","Interviewmag","Réponse séance rattrapage","Réponse séance rattrapage2","Prépa 23/08 10h00 - 12h","2eme rencontre 23/09","2ème rencontre 07/10","2ème rencontre 07/10\nMAJ SEPT","2ème rencontre 07/10\nMAJ SEPT2","2ème rencontre rattrapage 8/11","3ème rencontre REPAS","3ème rencontre 3 FEV\nMAJ SEPT22","3ème rencontre 10 FEV\nMAJ SEPT22","3ème rencontre 17 FEV\nMAJ SEPT2","4ème rencontre 14 sept\nMAJ SEPT22","4ème rencontre 5 oct\nMAJ SEPT2","5ème rencontre REPONSE","5ème rencontre 11/01","5ème rencontre 18/01","5ème rencontre 25/01","THE WEEK","Prépa bilan le 26/04/25","Journée européenne de la participation 18 mars 2025","intéressé par THE WEEK","groupe CITOYENNETE","Groupe\nECOLOGIE\nENVIRONNEMENT","Groupe\nDYNAMIQUE SOCIO-PRO","Groupe\nEVOLUTION VILLE","Groupe\nMOBILITE-DEPLACEMENT","Ref groupe","TOTAL \nPROJET","contact le 9/11"]
[1,"V",2024,null,"Gemmetrie","Madame","BARRE","Cathy","rue de l'Aubépine","06 88 17 72 38","cathybarre@hotmail.fr",1980,43,"intéressée pour être volontaire, info via Bénédicte DT et article janv 2024 Info St Barth - tel le 27/03/23",{"$nulls":10},1,{"$nulls":16},0,"x",1,0,0,null,0,0,{"$nulls":3},1]
[2,"V",2023,6,"Jaudette / Morlière","Monsieur","BOILEAU","Pascal","5 allée Jean Philippe Rameau",{"v":618313466,"d":"06 18 31 34 66"},"pascal.boileau27@sfr.fr",1960,{"$f":"2023-L3","v":63},"nature, transition écologique","ACCORD","x","X","X",1,null,"x",1,null,null,"?",1,null,0,null,null,"X","X","X",1,null,null,"oui",1,1,1,0,1,"x",1,0,0,null,1,1,null,1,null,1,{"$nulls":3},{"$f":"SUM(Tableau22[[#This Row],[groupe CITOYENNETE]:[Groupe\nMOBILITE-DEPLACEMENT]])","v":2}]
[3,"TAS",2023,5,"Jaudette / Morlière","Monsieur","BOUCHEE","Florian","31 rue David d'Angers ",{"v":631918078,"d":"06 31 91 80 78"},"florian.bouchee@gmail.com",1990,33,null,"ACCORD","X","X",null,0,null,null,0,null,null,0,0,null,1,{"$nulls":3},"X","?","ap-midi",{"$nulls":3},1,0,1,1,1,"x",1,0,0,1,0,0,null,null,1,{"$nulls":4},{"$f":"SUM(Tableau22[[#This Row],[groupe CITOYENNETE]:[Groupe\nMOBILITE-DEPLACEMENT]])","v":1}]
[4,"TAS",2023,5,"Jaudette / Morlière","Monsieur","BOUMIER  ","Michel","5 rue David D'ANGERS","06 88 79 33 15","mc.boumier@wanadoo.fr",1957,66,null,"ACCORD","X","X",null,1,null,"x",0,null,0,0,"?",{"$nulls":5},"NON","X",1,null,null,"oui",1,1,1,0,1,"x",0,0,1,null,1,0,null,null,1,{"$nulls":4},{"$f":"SUM(Tableau22[[#This Row],[groupe CITOYENNETE]:[Groupe\nMOBILITE-DEPLACEMENT]])","v":1}]
[5,"TAS",2023,5,"Jaudette / Morlière","Madame","BOUREAU  ","Laurence","35 rue des Closiers","06 86 72 83 09","laurence.boureau16@gmail.com",1965,58,"abs le 17 juin","ACCORD","Excusée","X",null,1,null,1,0,null,1,1,"?",null,11,"2023-07-05",null,null,"?","X",1,null,null,"salé",1,1,0,1,1,"x",0,1,0,null,null,0,"Fev le soir après 20h00 /vendredi soir ou 2 samedis",null,1,{"$nulls":4},{"$f":"SUM(Tableau22[[#This Row],[groupe CITOYENNETE]:[Groupe\nMOBILITE-DEPLACEMENT]])","v":1}]
[6,"TAS",2023,1,"Grand Centre","Monsieur","BRARD  ","Philippe","24 rue de la Taillanderie","06 11 48 85 36","brard.philippe.1@gmail.com",1962,61,null,"ACCORD","x","X",null,0,1,null,1,null,null,1,1,null,1,{"$nulls":4},"X",1,null,null,"NON",1,1,0,1,1,"x",0,1,1,null,1,0,{"$nulls":5},1,1,{"$f":"SUM(Tableau22[[#This Row],[groupe CITOYENNETE]:[Groupe\nMOBILITE-DEPLACEMENT]])","v":1}]
[7,"TAS",2023,6,"St Barth Campagne","Monsieur","BUGEY ","Jean-Pierre","LA HUETTERIE","06 38 79 77 05","jpbugey@gmail.com",1953,70," Isabelle Raimbault","ACCORD","X","X",null,null,0,{"$nulls":4},1,null,null,1,{"$nulls":3},"?","?",1,{"$nulls":3},1,0,0,null,0,"x",null,null,1,null,0,{"$nulls":4},1,null,null,1,{"$f":"SUM(Tableau22[[#This Row],[groupe CITOYENNETE]:[Groupe\nMOBILITE-DEPLACEMENT]])","v":1}]
[8,"V",2023,"5","Jaudette / Morlière","Madame","CHATAIGNER","Coco","8 rue du Pressoir","06 07 58 10 90","cocochataigner@wanadoo.fr","1961",62,"Elue, Anita Turpin","ACCORD","X","X","X",null,1,{"$nulls":4},1,null,0,0,{"$nulls":3},"X","NON","excusée",null,1,null,"?",1,"?",0,1,{"$nulls":4},1,0,{"$nulls":3},1,{"$nulls":4},{"$f":"SUM(Tableau22[[#This Row],[groupe CITOYENNETE]:[Groupe\nMOBILITE-DEPLACEMENT]])","v":1}]
[9,"V",2023,5,"Jaudette / Morlière","Monsieur","COUEDEL","Pascal","31 rue de Walcourt","06 29 97 53 59","couedelp31@laposte.net",1958,65,null,"ACCORD","x","X","X",1,1,1,0,null,1,1,1,null,0,{"$nulls":3},"X","X",1,null,null,"fromage",1,1,1,1,1,"x",1,1,1,1,1,1,null,1,1,{"$nulls":3},1,{"$f":"SUM(Tableau22[[#This Row],[groupe CITOYENNETE]:[Groupe\nMOBILITE-DEPLACEMENT]])","v":2}]
[10,"TAS",2024,null,"Chêne Vert / Paperie","Monsieur","DE BADEREAU DE SAINT-MARTIN ","Bertrand ","12 Route D'Angers","06 84 19 86 95","de.badereau.bertrand@gmail.com","1977-07-25","1946-08-12","courrier boite aux lettes 30/11/2024",{"$nulls":28},"x",1,1,0,null,0,0,"janvier",{"$nulls":3},1,null,null,{"$f":"SUM(Tableau22[[#This Row],[groupe CITOYENNETE]:[Groupe\nMOBILITE-DEPLACEMENT]])","v":1}]
[11,"V",2023,6,"St Barth Campagne","Madame","DE TOUZALIN","Bénédicte","18 rue de la Huetterie",{"v":679585093,"d":"06 79 58 50 93"},"bploye@hotmail.fr",null,34,"Com Extramunicipale - n'a pas reçu le mail du 2 mai d'info date de la 1ère IPC","ACCORD","x","x",null,0,1,"x",1,null,1,1,0,null,11,{"$nulls":3},"NON","X",1,"non repas","excusée","NON",1,1,0,1,1,"x",0,0,0,null,"g",0,null,1,{"$nulls":4},1,{"$f":"SUM(Tableau22[[#This Row],[groupe CITOYENNETE]:[Groupe\nMOBILITE-DEPLACEMENT]])","v":1}]
[12,"Cooptation",2024,null,"Grand Centre","Madame","PERAIN","Amélie","35 rue Yolande Grignon","06 99 38 24 56","amelie.perain@gmail.com",null,{"$f":"2023-L13","v":2023},{"$nulls":32},1,null,1,{"$nulls":3},1,{"$nulls":4},{"$f":"SUM(Tableau22[[#This Row],[groupe CITOYENNETE]:[Groupe\nMOBILITE-DEPLACEMENT]])","v":1}]
[13,"V",2024,null,"Grand Centre","Madame","DELSALLE","Julie","43 rue Pierre de Coubertin","06 17 31 03 06","juliedelsalle@sfr.fr",null,null,"est passée lors des Renc-arts 2024",{"$nulls":10},1,{"$nulls":16},1,"x",1,0,1,1,1,1,null,null,1]
[14,"TAS",2023,8,"Grand Centre","Madame","DHOTEL  ","Françoise","8 rue Jean Lurcat",{"v":698441186,"d":"06 98 44 11 86"},"francoise.dhotel@gmail.com",1947,{"$f":"2023-L15","v":76}," connue au VPR","ACCORD","x","X",null,1,1,null,0,null,null,1,0,null,11,{"$nulls":3},"NON","X",1,{"$nulls":3},0,0,1,1,0,"x",0,0,1,1,0,"a 1 hébergement sur place",{"$nulls":4},1,null,1,{"$f":"SUM(Tableau22[[#This Row],[groupe CITOYENNETE]:[Groupe\nMOBILITE-DEPLACEMENT]])","v":1}]
[15,"Cooptation",2024,null,"Grand Centre","Monsieur","DUTOT","Didier","Résidence Cocoon'Ages, route d'Angers","06 20 04 62 15","didier.dutot.dd@gmail.com",null,{"$f":"2023-L16","v":2023},"échange lors café avant rencontre des personnes tirées au sort le 30 nov 2024",{"$nulls":31},1,null,1,{"$nulls":4},1,{"$nulls":3},{"$f":"SUM(Tableau22[[#This Row],[groupe CITOYENNETE]:[Groupe\nMOBILITE-DEPLACEMENT]])","v":1}]
[16,"TAS",2024,8,"St Barth Campagne","Madame","FONTAINE","Marie-Frida"," 14 mpasse de la Cressonniere","06 16 60 14 45","mfridafontaine@gmail.com","1980-07-08","1943-08-29","Marilyne Béduneau la connait et intéressé par DSP car vient de se mettre à son compte",{"$nulls":10},1,{"$nulls":17},"x",0,0,1,null,0,0,{"$nulls":3},1,{"$nulls":3},{"$f":"SUM(Tableau22[[#This Row],[groupe CITOYENNETE]:[Groupe\nMOBILITE-DEPLACEMENT]])","v":1}]
[17,"TAS",2024,1,"Grand Centre","Madame","HIRIBARREN","Françoise","46 Rue de la Ranloue","06 30 56 11 77","hiribarren.francoise@wanadoo.fr","1945-03-30","1978-12-07","RDV  le 4/09",{"$nulls":10},0,{"$nulls":16},1,{"$nulls":3},1,{"$nulls":4},1,null,null,1,null,null,{"$f":"SUM(Tableau22[[#This Row],[groupe CITOYENNETE]:[Groupe\nMOBILITE-DEPLACEMENT]])","v":2}]
[18,"TAS",2024,1,"Grand Centre","Monsieur","HOSPITAL","Eric","29 Rue de la Ranloue","06 13 54 40 25 ","eric_hospital@hotmail.com ","1972-02-07","1952-01-28","Dispo le vendredi soir et le samedi car abs en semaine",{"$nulls":33},1,null,null,1,{"$nulls":5},{"$f":"SUM(Tableau22[[#This Row],[groupe CITOYENNETE]:[Groupe\nMOBILITE-DEPLACEMENT]])","v":1}]
[19,"TAS",2023,7,"St Barth Campagne","Monsieur","JEMIN ","Eric","16 rue de la Morellerie","06 08 97 54 58","eric.jemin@dao-be.com",1963,{"$f":"2023-L20","v":60},"pb mail mais pas de réponse au SMS 9/06","ACCORD","ABS",null,null,1,1,null,1,1,1,1,0,0,1,"2023-07-05",null,"X","X","NON","excusé",null,null,"oui",1,1,1,1,1,"x",1,1,1,null,1,0,{"$nulls":3},1,null,null,1,{"$f":"SUM(Tableau22[[#This Row],[groupe CITOYENNETE]:[Groupe\nMOBILITE-DEPLACEMENT]])","v":1}]
[20,"TAS",2023,7,"St Barth Campagne","Monsieur","JOUSSEAUME  ","Nicolas","120 rue du Hardas","06 62 03 63 03","nico.jouss@hotmail.fr",1978,{"$f":"2023-L21","v":45},null,"ACCORD","x",null,null,0,null,"x",0,null,null,0,0,null,1,{"$nulls":3},"NON","X",1,null,null,"NON",1,0,1,0,1,"x",0,1,1,null,0,0,{"$nulls":5},1,null,{"$f":"SUM(Tableau22[[#This Row],[groupe CITOYENNETE]:[Groupe\nMOBILITE-DEPLACEMENT]])","v":1}]
[21,"V",2024,null,"Claverie / Banchais","Madame","KLEIN","Pauline",null,"07 65 87 05 23","pauline.klein6792@gmail.com",null,31,"vu lors Renc-arts 2024\nnouvelle habitante - quartier Banchais ",{"$nulls":10},1,{"$nulls":16},0,"x",0,0,1,1,0,"ira plus tôt ",null,null,1,null,null,1]
[22,"V",2023,1,"Chêne Vert / Paperie","Monsieur","LE GALLOU","Benjamin","36 rue de la Reux",{"v":651301972,"d":"06 51 30 19 72"},"le.gallou.benjamin@gmail.com","1990",{"$f":"2023-L23","v":33},null,"ACCORD","x",null,null,0,null,null,0,null,1,0,1,1,11,{"$nulls":3},"X","X","excusé",null,1,"oui",0,1,1,null,1,"x",1,1,1,1,1,1,"oui",1,{"$nulls":5},{"$f":"SUM(Tableau22[[#This Row],[groupe CITOYENNETE]:[Groupe\nMOBILITE-DEPLACEMENT]])","v":1},"dispo le 8/11"]
[23,"V",2023,3,"Gemmetrie","Monsieur","LEMARQUAND","Jacques","4 passage de la malle",{"v":783695778,"d":"07 83 69 57 78"},"jacques.lemarquand@gmail.com",null,65,"abs le 17 juin","ACCORD","Excusé","X",null,1,0,"x",1,null,1,0,0,null,null,"2023-07-05",{"$nulls":4},1,null,null,"oui",1,1,1,1,1,"x",1,1,1,null,0,0,"janvier février",null,1,1,null,null,1,{"$f":"SUM(Tableau22[[#This Row],[groupe CITOYENNETE]:[Groupe\nMOBILITE-DEPLACEMENT]])","v":2}]
[24,"V",2023,8,"Grand Centre","Madame","LORAND ","Isabelle","11 B rue de Verdun","06 65 42 30 38","lorandpascal@orange.fr","1965",{"$f":"2023-L25","v":58},null,"ACCORD","x","x",null,1,null,"x",1,null,1,1,1,0,1,{"$nulls":3},"NON","X",1,{"$nulls":3},1,1,0,1,0,{"$nulls":3},0,null,"g",null,null,1,{"$nulls":5},{"$f":"SUM(Tableau22[[#This Row],[groupe CITOYENNETE]:[Groupe\nMOBILITE-DEPLACEMENT]])","v":1}]
[25,"TAS",2024,1,"Grand Centre","Monsieur","MORATA","Sébastien","24 rue de la Gabelle","07 87 47 17 50","morata.sebastien@orange.fr","1982-07-23","1941-08-14","Vient à la plénière du 25 janvier pour découvir les groupes avant de choisir",{"$nulls":31},1,null,1,{"$nulls":8},{"$f":"SUM(Tableau22[[#This Row],[groupe CITOYENNETE]:[Groupe\nMOBILITE-DEPLACEMENT]])","v":0}]
[26,"TAS",2023,1,"Grand Centre","Madame","MOREAU  ","Thérèse","7 Impasse de la Charmille","06 74 59 75 65","teresemoreau@orange.fr",1959,{"$f":"2023-L27","v":64},"ok, 3 ans ?","NON ACCORD","Excusée","X",null,0,null,1,1,null,1,0,0,null,null,"lundi soir","04/09/2023\nABS",null,"X","NON",1,null,null,"?",null,"?",null,0,1,"x",1,0,0,null,0,0,{"$nulls":4},1,null,1,{"$f":"SUM(Tableau22[[#This Row],[groupe CITOYENNETE]:[Groupe\nMOBILITE-DEPLACEMENT]])","v":1}]
[27,"V",2024,null,"Grand Centre","Monsieur","MORIN","Marcel","12 rue du 11 novembre","06 30 23 60 02","mmorin51@orange.fr",null,"65 - 70","ami de Philippe Brard - début 2024",{"$nulls":10},0,{"$nulls":16},0,"x",0,0,1,null,0,0,{"$nulls":5},1]
[28,"V","2023\n2024",4,"Grand Centre","Madame","PAREYN","Lise","15 avenue John Kennedy",null,"l.pareyn@hotmail.fr",null,35,"a participé à l'élaboration de la dynamique de participation citoyenne, mais n'a pas pu intégré le RC en 2024, doit venir en 2025",{"$nulls":33},0,{"$nulls":8},{"$f":"SUM(Tableau22[[#This Row],[groupe CITOYENNETE]:[Groupe\nMOBILITE-DEPLACEMENT]])","v":0}]
[29,"TAS",2024,1,"Chêne Vert / Paperie","Madame","POKAM","Vanessa","29 Mail de Saint Malo","06 42 63 91 26","irinapokam@gmail.com","1996-08-20","1944-04-22","nouvelle habitante, RDV LE 17/12",{"$nulls":31},0,null,null,1,{"$nulls":7},{"$f":"SUM(Tableau22[[#This Row],[groupe CITOYENNETE]:[Groupe\nMOBILITE-DEPLACEMENT]])","v":0}]
[30,"TAS",2024,8,"Claverie / Banchais","Monsieur","ROUTHIAU","Jacques","37 Rue Maurice Geslin","07 66 60 98 04","jacmian1@orange.fr","1983-07-31","1940-08-06","dépôt courrier 2 fois dans boite aux lettres - tel en nov 2024, investit dans 1 asso écolo - intéressé par gr environnement et DSP",{"$nulls":28},"x",1,0,0,null,null,0,"soir",null,null,1]
[31,"TAS",2024,null,"Grand Centre","Madame","OURIOU","Virginie",null,"07 86 62 97 83","vpouriou@hotmail.fr",null,null,"TAS, tel à Aline + Renc-arts 2024",{"$nulls":10},"?",{"$nulls":17},"x",0,0,1,null,0,0,{"$nulls":4},1,null,1]
[32,"V",2023,7,"St Barth Campagne","Monsieur","POIRIER ","Baptiste","rue de la Richardière - LA FORESTERIE","06 61 32 85 85","poirier.baptiste@hotmail.fr",32146,35,"TEL le 3 juillet 2023, intéressé pour participer au Rucher citoyen\nINVITATION à être membre le 7/08/23","ACCORD",{"$nulls":9},1,{"$nulls":4},"2023-09-04",{"$nulls":3},1,"LEVURE principalement. Arachides et noisettes. Soja non cuit, kiwi et fraises non cuites.",null,"salé",1,1,1,null,1,"x",1,1,1,null,0,0,"oui",null,1,null,null,1,null,{"$f":"SUM(Tableau22[[#This Row],[groupe CITOYENNETE]:[Groupe\nMOBILITE-DEPLACEMENT]])","v":2}]
[33,"V",2023,7,"St Barth Campagne","Madame","SEBTI HEMERY","Mariam","Le bois Boulet",{"v":750428984,"d":"07 50 42 89 84"},"patrick.hemery803@orange.fr","1966",{"$f":"2023-L34","v":57},null,"ACCORD","X",null,null,1,1,null,0,null,1,1,"?",null,11,{"$nulls":3},"NON","X",1,{"$nulls":3},1,0,0,null,0,{"$nulls":3},1,1,0,0,{"$nulls":5},1,1,{"$f":"SUM(Tableau22[[#This Row],[groupe CITOYENNETE]:[Groupe\nMOBILITE-DEPLACEMENT]])","v":1}]
[34,"V",2023,7,"St Barth Campagne","Monsieur","VIAU","Patrice","12 rue de la Morellerie ",{"v":612292402,"d":"06 12 29 24 02"},"Patrice-isa.viau@wanadoo.fr ","1964",{"$f":"2023-L35","v":59},null,"ACCORD","ABS","X",{"$nulls":7},1,null,null,1,"message tel le 3/07","EXCUSE ",null,"NON","X","excusé",null,1,"?",0,1,1,null,1,"x",0,0,1,1,null,0,{"$nulls":5},1,null,{"$f":"SUM(Tableau22[[#This Row],[groupe CITOYENNETE]:[Groupe\nMOBILITE-DEPLACEMENT]])","v":1},"sms"]
[{"$nulls":18},{"$f":"SUM(S2:S35)","v":9},null,null,{"$f":"SUM(V2:V35)","v":7},null,{"$f":"SUM(X2:X35)","v":9},{"$f":"SUM(Y2:Y35)","v":16},{"$f":"SUM(Tableau22[Stand Ranc-arts\n1er/06])","v":5},{"$nulls":10},18,{"$f":"SUM(AL2:AL35)","v":14},{"$f":"SUM(AM2:AM35)","v":13},{"$f":"SUM(AN2:AN35)","v":11},{"$f":"SUM(Tableau22[4ème rencontre 14 sept\nMAJ SEPT22])","v":9},{"$f":"SUM(AP2:AP35)","v":17},null,{"$f":"SUBTOTAL(109,Tableau22[5ème rencontre 11/01])","v":12},{"$f":"SUBTOTAL(109,Tableau22[5ème rencontre 18/01])","v":9},{"$f":"SUBTOTAL(109,Tableau22[5ème rencontre 25/01])","v":21},{"$f":"SUBTOTAL(109,Tableau22[THE WEEK])","v":9},{"$f":"SUBTOTAL(109,Tableau22[Prépa bilan le 26/04/25])","v":11},{"$f":"SUBTOTAL(109,Tableau22[Journée européenne de la participation 18 mars 2025])","v":5},null,{"$f":"SUBTOTAL(109,Tableau22[groupe CITOYENNETE])","v":7},{"$f":"SUBTOTAL(109,Tableau22[Groupe\nECOLOGIE\nENVIRONNEMENT])","v":10},{"$f":"SUBTOTAL(109,Tableau22[Groupe\nDYNAMIQUE SOCIO-PRO])","v":8},{"$f":"SUM(BB2:BB35)","v":5},{"$f":"SUBTOTAL(109,Tableau22[Groupe\nMOBILITE-DEPLACEMENT])","v":7}]
[{"$nulls":7},"6 pers sont sur 2 gr projet",{"$nulls":16},"9 non",8,{"$nulls":12},2]
[{"$nulls":23},"15 non réponses"]

{"sheet":"SOIRRE NX RC","index":1,"n_rows":59,"n_cols":6,"rows_kept":59}
["Civilité","Nom","Prénom","Statut","Emargement","Observation"]
["Monsieur","ALIOUAT ","Samy","TAS"]
["Madame","AMELINE ","Mélissa","TAS"]
["Monsieur","ANQUETIL  ","Joris","TAS"]
["Madame","BARRE","Cathy","V"]
["Madame","BARRIER DORMET  ","Hélène","TAS"]
["Madame","BAUMARD  ","Gersende","TAS"]
["Madame","BOUVET VETAULT  ","Chantal","TAS"]
["Monsieur","BRARD  ","Philippe","RC"]
["Madame","BYROTHEAU  ","Léa","TAS"]
["Madame","CACHEUX  ","Vanessa","TAS"]
["Madame","CHATAIGNER","Coco","RC"]
["Monsieur","COUEDEL","Pascal","RC"]
["Monsieur","DE BADEREAU DE SAINT-MARTIN  ","Bertrand","TAS"]
["Madame","DE TOUZALIN","Bénédicte","RC"]
["Madame","DELAUNAY CAILLEAU  ","Daniele","TAS"]
["Madame","DELSALLE","Julie","V"]
["Monsieur","DEROP  ","Florian","TAS"]
["Madame","DEROUET  ","Nelly","TAS"]
["Madame","DHOTEL  ","Françoise","RC"]
["Monsieur","DIAS  ","Stéphane","TAS"]
["Madame","DOLAY  ","Amélie","TAS"]
["Madame","DUBOIS ","Blandine","TAS"]
["Madame","ESCUDEIRO","Anne","V"]
["Madame","GARNIER  ","Melyssa","TAS"]
["Madame","GARREAU BLANCHE  ","Renée","TAS"]
["Monsieur","GASTINEAU ","Benoît","TAS"]
["Madame","GIRARD  ","Jacqueline","TAS"]
["Monsieur","GIRAULT  ","Jacques","TAS"]
["Monsieur","GODEY  ","Julien","TAS"]
["Monsieur","GOULET  ","Teddy","TAS"]
["Madame","GRAPAIN GADAIS ","Emilie","TAS"]
["Madame","HERRY  ","Sandrine","TAS"]
["Madame","HEUDE  ","Josephine","TAS"]
["Monsieur","HOSPITAL  ","Eric","TAS"]
["Madame","HOUDAS ","Sarah","TAS"]
["Monsieur","JEMIN ","Eric","RC"]
["Madame","KLEIN","Paulline","V"]
["Madame","LAFONT ","Louise","TAS"]
["Monsieur","LAMISSE  ","Olivier","TAS"]
["Monsieur","LE GONIDEC  ","Alexandre","TAS"]
["Madame","LE MIEN ","Pauline","TAS"]
["Madame","LEYE COEUDEVEZ  ","Armelle","TAS"]
["Madame","MAGRON LAVALLET  ","Céline","TAS"]
["Madame","MALNUIT  ","Lisa","TAS"]
["Madame","MARIE  ","Céline","TAS"]
["Monsieur","MASSON  ","Gildas","TAS"]
["Monsieur","MORATA  ","Sébastien","TAS"]
["Monsieur","MOREAU  ","Pascal","TAS"]
["Monsieur","MORIN","Marcel","V"]
["Madame","NICOLAS HERVE  ","Jeannine","TAS"]
["Madame","OURIOU CHATELAIS  ","Virginie","TAS"]
["Madame","PICOULEAU  ","Camille","TAS"]
["Monsieur","ROUTHIAU  ","Jacques","TAS"]
["Madame","SEBTI HEMERY","Mariam","RC"]
["Madame","TAHARI  ","Claudie","TAS"]
["Monsieur","VELLEINE  ","Arnaud","TAS"]
["Monsieur","VIE  ","Jackie","TAS"]
["Monsieur","VILLOING ","Christophe","TAS"]

{"sheet":"répartition projets (2)","index":2,"n_rows":40,"n_cols":6,"rows_kept":40,"merged":[[1,0,6,0],[7,0,16,0],[17,0,26,0],[27,0,33,0],[34,0,38,0],[39,0,39,5],[40,0,40,1]]}
["GROUPES","Nom","Prénom","Tel","Mail","Observation"]
["CITOYENNETE\n(6 personnes)","BOILEAU","Pascal",{"v":618313466,"d":"06 18 31 34 66"},"pascal.boileau27@sfr.fr"]
[null,"COUEDEL","Pascal","06 29 97 53 59","couedelp31@laposte.net"]
[null,"DE TOUZALIN","Bénédicte",{"v":679585093,"d":"06 79 58 50 93"},"bploye@hotmail.fr"]
[null,"HOSPITAL","Eric","06 13 54 40 25 ","eric_hospital@hotmail.com "]
[null,"LE GALLOU","Benjamin",{"v":651301972,"d":"06 51 30 19 72"},"le.gallou.benjamin@gmail.com"]
[null,"LORAND ","Isabelle","06 65 42 30 38","lorandpascal@orange.fr"]
["ECOLOGIE\nENVIRONNEMENT\n(10 personnes au minimum)","BOUCHEE","Florian",{"v":631918078,"d":"06 31 91 80 78"},"florian.bouchee@gmail.com"]
[null,"BOUMIER  ","Michel","06 88 79 33 15","mc.boumier@wanadoo.fr"]
[null,"BOUREAU  ","Laurence","06 86 72 83 09","laurence.boureau16@gmail.com"]
[null,"CHATAIGNER","Coco","06 07 58 10 90","cocochataigner@wanadoo.fr"]
[null,"COUEDEL","Pascal","06 29 97 53 59","couedelp31@laposte.net"]
[null,"DELSALLE","Julie","06 17 31 03 06","juliedelsalle@sfr.fr"]
[null,"KLEIN","Pauline","07 65 87 05 23","pauline.klein6792@gmail.com","prend le temps de choisir entre 2 groupes"]
[null,"LEMARQUAND","Jacques",{"v":783695778,"d":"07 83 69 57 78"},"jacques.lemarquand@gmail.com"]
[null,"PERAIN","Amélie","06 99 38 24 56","amelie.perain@gmail.com"]
[null,"POIRIER ","Baptiste","06 61 32 85 85","poirier.baptiste@hotmail.fr"]
["DYNAMIQUE SOCIO-PRO\n(9/10 personnes au minimum)","BARRE","Cathy","06 88 17 72 38","cathybarre@hotmail.fr"]
[null,"BOILEAU","Pascal",{"v":618313466,"d":"06 18 31 34 66"},"pascal.boileau27@sfr.fr"]
[null,"BUGEY ","Jean-Pierre","06 38 79 77 05","jpbugey@gmail.com"]
[null,"DUTOT","Didier","06 20 04 62 15","didier.dutot.dd@gmail.com"]
[null,"FONTAINE","Marie-Frida","06 16 60 14 45","mfridafontaine@gmail.com"]
[null,"JEMIN ","Eric","06 08 97 54 58","eric.jemin@dao-be.com"]
[null,"LEMARQUAND","Jacques",{"v":783695778,"d":"07 83 69 57 78"},"jacques.lemarquand@gmail.com"]
[null,"MORATA","Sébastien","07 87 47 17 50","morata.sebastien@orange.fr"]
[null,"POKAM","Vanessa","06 42 63 91 26","irinapokam@gmail.com"]
[null,"ROUTHIAU","Jacques","07 66 60 98 04","jacmian1@orange.fr"]
["\nMOBILITE-DEPLACEMENT\n(7 personnes au minimum)","BRARD  ","Philippe","06 11 48 85 36","brard.philippe.1@gmail.com"]
[null,"JOUSSEAUME  ","Nicolas","06 62 03 63 03","nico.jouss@hotmail.fr"]
[null,"KLEIN","Pauline","07 65 87 05 23","pauline.klein6792@gmail.com","prend le temps de choisir entre 2 groupes"]
[null,"MORIN","Marcel","06 30 23 60 02","mmorin51@orange.fr"]
[null,"POIRIER ","Baptiste","06 61 32 85 85","poirier.baptiste@hotmail.fr"]
[null,"SEBTI HEMERY","Mariam",{"v":750428984,"d":"07 50 42 89 84"},"patrick.hemery803@orange.fr"]
[null,"VIAU","Patrice",{"v":612292402,"d":"06 12 29 24 02"},"Patrice-isa.viau@wanadoo.fr "]
["EVOLUTION DE LA VILLE\n(5 personnes)","DE BADEREAU DE SAINT-MARTIN ","Bertrand ","06 84 19 86 95","de.badereau.bertrand@gmail.com"]
[null,"DHOTEL  ","Françoise",{"v":698441186,"d":"06 98 44 11 86"},"francoise.dhotel@gmail.com"]
[null,"HIRIBARREN","Françoise","06 30 56 11 77","hiribarren.francoise@wanadoo.fr"]
[null,"MOREAU  ","Thérèse","06 74 59 75 65","teresemoreau@orange.fr"]
[null,"OURIOU","Virginie","07 86 62 97 83","vpouriou@hotmail.fr"]
["police en gras pour les référents de groupe"]

{"sheet":"répartition projets","index":3,"n_rows":31,"n_cols":6,"rows_kept":31,"merged":[[1,0,6,0],[1,5,6,5],[7,0,16,0],[7,5,16,5],[17,0,21,0],[17,5,21,5],[22,0,27,0],[22,5,27,5],[28,0,30,0],[28,5,30,5]]}
["GROUPES","Nom","Prénom","Tel","Mail","prochaine réunion"]
["CITOYENNETE\n(5 personnes)","BOILEAU","Pascal",{"v":618313466,"d":"06 18 31 34 66"},"pascal.boileau27@sfr.fr","2024-03-30"]
[null,"BOUCHEE","Florian",{"v":631918078,"d":"06 31 91 80 78"},"florian.bouchee@gmail.com"]
[null,"COUEDEL*","Pascal","06 29 97 53 59","couedelp31@laposte.net"]
[null,"DE TOUZALIN*","Bénédicte",{"v":679585093,"d":"06 79 58 50 93"},"bploye@hotmail.fr"]
[null,"LE GALLOU","Benjamin",{"v":651301972,"d":"06 51 30 19 72"},"le.gallou.benjamin@gmail.com"]
[null,"LORAND ","Isabelle","06 65 42 30 38","lorandpascal@orange.fr"]
["ECOLOGIE\nENVIRONNEMENT\n(10 personnes)","BOUCHEE","Florian",{"v":631918078,"d":"06 31 91 80 78"},"florian.bouchee@gmail.com","25 mars sortie recensement orchidées sauvages\n17 avril rencontre des agents"]
[null,"BOUMIER  ","Michel","06 88 79 33 15","mc.boumier@wanadoo.fr"]
[null,"BOUREAU  ","Laurence","06 86 72 83 09","laurence.boureau16@gmail.com"]
[null,"CHATAIGNER","Coco","06 07 58 10 90","cocochataigner@wanadoo.fr"]
[null,"COUEDEL","Pascal","06 29 97 53 59","couedelp31@laposte.net"]
[null,"DUBOT RICHARD","Bénédicte","06 35 19 51 77","benedicte.dubot@live.fr"]
[null,"GUICHARD","Monique","06 26 49 46 04","jlm.guichard@outlook.fr"]
[null,"LEGEAI  ","Emily","06 11 56 60 27","emily.legeai@gmail.com"]
[null,"LEMARQUAND*","Jacques",{"v":783695778,"d":"07 83 69 57 78"},"jacques.lemarquand@gmail.com"]
[null,"POIRIER ","Baptiste","06 61 32 85 85","poirier.baptiste@hotmail.fr"]
["DYNAMIQUE SOCIO-PRO\n(5 personnes)","BOILEAU","Pascal",{"v":618313466,"d":"06 18 31 34 66"},"pascal.boileau27@sfr.fr","25 mars rencontre des élues ref"]
[null,"BUGEY*","Jean-Pierre","06 38 79 77 05","jpbugey@gmail.com"]
[null,"JEMIN*","Eric","06 08 97 54 58","eric.jemin@dao-be.com"]
[null,"LEMARQUAND","Jacques",{"v":783695778,"d":"07 83 69 57 78"},"jacques.lemarquand@gmail.com"]
[null,"NOBLE ","Victor","06 75 94 87 38","victor.noble.ua@gmail.com"]
["\nMOBILITE-DEPLACEMENT\n(6 personnes)","BRARD*  ","Philippe","06 11 48 85 36","brard.philippe.1@gmail.com","le 30 mars 14h30 : trajets reconnaissance\nle 12 avril à 18h00"]
[null,"JOUSSEAUME  ","Nicolas","06 62 03 63 03","nico.jouss@hotmail.fr"]
[null,"LEVARD","Didier","07 80 54 11 26","dlevard@hotmail.com"]
[null,"POIRIER ","Baptiste","06 61 32 85 85","poirier.baptiste@hotmail.fr"]
[null,"SEBTI HEMERY*","Myriam",{"v":750428984,"d":"07 50 42 89 84"},"patrick.hemery803@orange.fr"]
[null,"VIAU","Patrice",{"v":612292402,"d":"06 12 29 24 02"},"Patrice-isa.viau@wanadoo.fr "]
["EVOLUTION DE LA VILLE\n(3 personnes)","DHOTEL*","Françoise",{"v":698441186,"d":"06 98 44 11 86"},"francoise.dhotel@gmail.com","29 mars présentation de St Barthélemy à la Fac de Géo M2"]
[null,"MOREAU*","Thérèse","06 74 59 75 65","teresemoreau@orange.fr"]
[null,"RENAUD AUBINEAU* ","Guillaume","07 55 01 97 17","renaudguillaume49@gmail.com"]

{"sheet":"stat","index":4,"n_rows":25,"n_cols":12,"rows_kept":25,"merged":[[0,3,0,4],[13,7,13,8]]}
["QUARTIER","2023-06-01","2024-03-01","tirage au sort début 2024"]
[{"$nulls":3},"equilibre","tirage "]
["Chêne Vert / Paperie",6,4,7,{"$f":"D3-C3","v":3}]
["Claverie / Banchais",1,0,6,6]
["Gemmetrie",11,6,7,1]
["Grand Centre",6,5,6,1]
["Jaudette / Morlière",10,6,{"$f":"C7","v":6},0]
["St Barth Campagne",7,8,{"$f":"C8","v":8},0]
[null,null,{"$f":"SUM(C3:C8)","v":29},{"$f":"SUM(D3:D8)","v":40},{"$f":"SUM(E3:E8)","v":11}]
[]
["Répartition par sexe","2023-06-01",{"$f":"C1","v":"2024-03-01"},{"$f":"D1","v":"tirage au sort début 2024"}]
["Femme",18,12,{"$f":"H21","v":8}]
["Homme",23,17,{"$f":"I21","v":3}]
[{"$nulls":7},{"$f":"D1","v":"tirage au sort début 2024"}]
["TRANCHES D'AGES",null,null,"Femme","Homme","Femme","Homme","Femme","Homme"]
[null,"2023-06-01",{"$f":"C1","v":"2024-03-01"},"2023-06-01","2023-06-01",{"$f":"C1","v":"2024-03-01"},{"$f":"C1","v":"2024-03-01"}]
["18 - 34 ans",10,6,6,4,2,4,3,0,{"$f":"H17+F17","v":5},4,{"$f":"K17+J17","v":9}]
["35 - 54 ans",4,3,2,2,1,2,3,2,4,4,{"$f":"K18+J18","v":8}]
["55 -69 ans",18,15,8,10,7,8,0,0,7,8,{"$f":"K19+J19","v":15}]
["70 ans et plus",9,5,3,6,2,3,2,1,4,4,{"$f":"K20+J20","v":8}]
[null,{"$f":"SUM(B17:B20)","v":41},29,19,22,12,17,8,3,{"$f":"J20+J19+J18+J17","v":20},{"$f":"K20+K19+K18+K17","v":20},{"$f":"K21+J21","v":40}]
[]
[null,"2023-06-01",{"$f":"C1","v":"2024-03-01"}]
["personne tirées au sort",23,16,{"$f":"C24/B24","v":{"v":0.6956521739130435,"d":"69.57%"}}]
["Volontaire ",18,13,{"$f":"C25/B25","v":{"v":0.7222222222222222,"d":"72.22%"}}]

{"sheet":"départ non venue","index":5,"n_rows":51,"n_cols":47,"rows_kept":51}
["Bureau de vote","Quartier","Volontaire /Tiré au sort","Civilité","Nom","Prènom","Rue","Tel","Mail","date naissance","Age","observation","mbre RUCHER CITOYEN","Départ du Rucher C"]
[2,null,"TAS","Madame","MARGOLLE Elodie Marjorie",0,"12 RUE DES GLYCINES","06  81 89 03 65","elodiemargolle@yahoo.fr","1980-04-21","1942-11-18","groupe ponctuel sur : incivilité, respect des lieux et propreté et entraide intergénérationnel","non membre du Rucher Citoyen"]
[4,null,"TAS","Madame","PLOUHINEC Chantal Marie","(LEMEUNIER)","11 RUE DE LA GEMMETRIE","06-83-73-76-46","jacques.lemeunier0607@orange.fr","1950-07-06","1972-09-03","non  mais intéressée, pas dispo","non membre du Rucher Citoyen"]
[3,null,"TAS","Madame","GUIDEAU Lucie Valérie Michèle",0,"23 RUE DES CORDELLES",null,null,"1989-01-20","1934-02-17","investie école privée, pas dispo à court terme","non membre du Rucher Citoyen"]
[7,null,"TAS","Monsieur","POIRIER ","Baptiste ","RUE DE LA RICHARDIERE\n LA FORESTERIE","06 61 32 85 85",null,"1988-01-04","1935-03-06","TEL le 3 juillet 2023, intéressé pour participer au Rucher citoyen","INVITATION LE 7/08\nok le 30/08"]
[4,"Gemmetrie","V","Monsieur","GRIFFON","Jean-François","14 impasse de la Moricerie","06 80 17 32 89","jean-francois.griffon@sfr.fr","1952",71," transport solidaire / vu le 7/08 : ne souhaite pas participer sauf sur civisme","FIN LE 7/08/23","oui"]
[1,"Chêne Vert / Paperie","TAS","Madame","KUM--BORE  ","Emmanuelle","95 rue de la Reux","06 35 59 81 18","manudu49@orange.fr",1993,30,"SMS et tel : non dispo intérêt pour actions ponctuelles de collectes solidaires","FIN LE 7/08/23",{"$nulls":3},"départ",16]
[null,"Jaudette / Morlière","TAS","Madame","LENOIR  ","Sylvie","6 allée Jean Philippe Rameau","06 74 81 39 21","sylvie.lenoir.04@gmail.com",1958,{"$f":"2023-J8","v":65},"réserve / dispo et en effet trop prise par famille (maman et petit enfant + engagement bénévole)","fin le1/09/23","oui",null,null,"femme",6]
[6,"Jaudette / Morlière","TAS","Monsieur","RICHARD  ","Patrick","27 rue du chenin Blanc","06 14 59 19 65","patrick.richard924@orange.fr",1948,{"$f":"2023-1948","v":75},"trop pris par d'autres engagements mais \"bartholoméen convaincu\"","fin le 11/09/23","oui",null,null,"homme ",10]
[3,"Chêne Vert / Paperie","TAS","Madame","BOSSARD ","Mathilde","7 rue Modeste Renioult","06 50 53 17 16",null,null,31,"aucun retour : mail - tel -courrier","aucune nouvelle"]
[null,"Gemmetrie","TAS","Monsieur","ZENIT  ","Pascal","122 rue de la Gemmetrie","06 81 02 60 92","pascal.zenit@sfr.fr",1957,{"$f":"2023-J11","v":66},"Mme Rimbault arrêt / pb de santé","Fin le 10/10/2023","oui",null,null,"TAS",10,4,"femmes"]
[1,"Grand Centre","V","Madame","REGUER","Jehanne","23 rue de la Croix de cheminée","06 24 36 06 73","reguerjehanne@gmail.com","2000",{"$f":"2023-J12","v":23},"a participer à l'écriture de la Charte mais difficile de conjuguer études et Rucher Citoyen","Fin le 18/10/2023","oui",null,null,"Volontaire",6,3,"femmes"]
[8,"Claverie / Banchais","TAS","Monsieur","COUSIN  ","Mario","35 rue des Claveries",{"v":679648013,"d":"06 79 64 80 13"},"mario.cousin@wanadoo.fr",1971,{"$f":"2023-J13","v":52},"dif pour lui de se libérer : travaille souvent tard et le samedi ","Fin le 16/10/23","oui"]
[4,"Gemmetrie","V","Monsieur","JOBIN","Maxance","48 rue de la Gemmetrie","06 17 37 08 79","maxancejobin@gmail.com","2002",{"$f":"2023-J14","v":21},null,"Fin 16/11 : départ à l'étranger","oui",null,null,"raisons départ ","volontaire","ne correspond pas à ses attentes ",3]
[4,"Gemmetrie","V","Madame","PAREYN","Lise",null,{"v":650528070,"d":"06 50 52 80 70"},"l.pareyn@hotmail.fr","jeunesse",35,"A participé à la mise en place de la démarche participative et fait partie de la CEM","Fin 16/11 : enceinte et peu dispo reste à la CEM","oui",{"$nulls":4},"études",1]
[2,"Gemmetrie","TAS","Madame","MARTIN ","Nicole","69 rue de la Gemmetrie",{"v":677717570,"d":"06 77 71 75 70"},"chremarti@orange.fr",1949,{"$f":"2023-J16","v":74},"son marie avait été tiré au sort, \npb / côté politique présent dans le groupe Environnement 1ère rencontre; était ref du groupe","fin le 15/01/24","oui"]
[5,"Jaudette / Morlière","V","Monsieur","BRILLET","Albert","36 rue des Closiers","02 41 93 35 37",null,"1948",75,"ne s'y retrouve pas, ses proets ne correspondent pas","fin le 19/02","oui",{"$nulls":4},"manque de dispo",1]
[8,"Jaudette / Morlière","TAS","Monsieur","VIEZ ","Philippe","43 Bis Route de Beaufort","06 18 96 64 60","philippe.viez@free.fr",1960,63,"raisons perso (médical et travail)","fin le 4/03","oui"]
[null,"Gemmetrie","V","Madame","BARRE","Cathy","rue de l'Aubépine","06 88 17 72 38","cathybarre@hotmail.fr",1980,43,"intéressée pour être volontaire, info via Bénédicte DT et article janv 2024 Info St Barth","tel le 27/03","membre en juillet 2024"]
[6,"Gemmetrie","TAS","Madame","HODE   ","Christine ","43 Rue Jean Jaurès",{"v":678232112,"d":"06 78 23 21 12"},"hodechristine@yahoo.fr ",1965,58,"pas assez disponible","tel le 5/04","oui",null,null,"TAS",null,"manque de disponibilité",5,"dont 1 formation"]
[4,"Gemmetrie","TAS","Monsieur","COSTES  ","Christian","82 rue de la Gemmetrie","06 24 86 45 18","chriscostes@orange.fr",1949,74,"départ le 16/05/2024: veut de l'action et pas en accord avec la procédure d'avancement d'un collectif - projet de webradio","mails envoyés à D Vicente et au maire","oui",{"$nulls":4},"pb santé pers ou famille",2]
[2,"Gemmetrie","V","Monsieur","PETIT","Marc ","107 rue de la Gemmetrie",{"v":677260815,"d":"06 77 26 08 15"},"marco.petit49@orange.fr",1950,73,"Arrivée : mail 27/03 + tel Y Bignonet \ninfo par RDV : épuisé + ses désaccard d'hier et tjs présents ne rendent plus possible sa participation","Départ le 31/05/24","oui",{"$nulls":4},"départ à l'étrangé",1]
[3,"Chêne Vert / Paperie","TAS","Madame","HEINRY  ","Micheline","1 rue des Lilas","06 77 65 66 45",null,1951,73,"Anita / difficulté de compréhension et il faudrait un accompagnement -  - 16 octobre","départ le 6/06/par sms","oui",{"$nulls":4},"pas à l'aise avec le côté politique",1]
[7,"Grand Centre","TAS","Monsieur","RENAUD AUBINEAU  ","Guillaume","27 rue François Mauriac","07 55 01 97 17","renaudguillaume49@gmail.com",2004,20,"A passé son permis, puis formation en sept 2024 : trop difficile de concilier les 2","Maryline","oui",{"$nulls":4},"action ",1]
[7,"Grand Centre","TAS","Monsieur","GOULET","Teddy ","11 Rue de Verdun","06 63 25 39 44","goulet.teddy@laposte.net","15/09/76","47","Venu le 9 juillet - centralité 2023\nensuite aucune réponse aux mails, tel, sms","jamais venu",{"$nulls":3},"Venu le 9 juillet - centralité","OUI",null,"goulet_teddy@laposte.net","06 63 25 39 44",{"$nulls":24},"1"]
[3,"Chêne Vert / Paperie","v","Madame","DUBOT RICHARD","Bénédicte","21 rue des Cordelles","06 35 19 51 77","benedicte.dubot@live.fr","1980",{"$f":"2023-J26","v":43},"info par mail le 21 mars, départ par manque de temps + présence en sept 2024 d'une pers qu'elle connait pro","2024-10-01"]
[null,"Grand Centre","TAS","Monsieur","MASSON "," Gildas ","11 Rue Cezanne","06 89 32 31 39","gildas.masson49@orange.fr","1945-05-01","1978-11-05","gr déplacement, a participé à 1 réunion 2024 / pb de santé","2024-10-01",{"$nulls":3},"gr déplacement, a participé à 1 réunion","oui",null,"gildas.masson49@orange.fr","06 89 32 31 39",1,{"$nulls":24},1]
[7,"St Barth Campagne","V","Madame","GUICHARD","Monique","362 rue de la Richardière, Lieu dit Le puits des Bulleterie","06 26 49 46 04","jlm.guichard@outlook.fr","1958",{"$f":"2023-J28","v":65},"reprend l'association ADZI de son quartier et ne peut être partout","2024-11-01"]
[18,"Gemmetrie","TAS","Madame","LEGEAI  ","Emily","128 ure Pierre et Marie Curie","06 11 56 60 27","emily.legeai@gmail.com",1989,{"$f":"2023-J29","v":34},"n'est jamais venue, car pb de santé de son bébé","2024-11-01"]
[23,"Chêne Vert / Paperie","TAS","Monsieur","NOBLE ","Victor","45 rue de la Reux","06 75 94 87 38","victor.noble.ua@gmail.com",null,1995,"déménagement - vit commune avec sa compagne","2024-11-01"]
[4,"Gemmetrie","V","Monsieur","LEVARD","Didier","9 rue de la Gemmetrie, résidence du Cénacle","07 80 54 11 26","dlevard@hotmail.com","1958",{"$f":"2023-J31","v":65},"manque de temps et aurait voulu faire le projet déplacement autour des points urgents à modifiés car dangereux","2024-10-01"]
[]
[{"$nulls":13},"femmes"]
[{"$nulls":13},"hommes"]
[{"$nulls":10},"le 04/03","départ ",8,"homme",{"$nulls":4},"difficulté de compréhension",1]
[{"$nulls":12},9,"membres"]
[{"$nulls":11},"arrivée ",1]
[{"$nulls":11},"total ",{"$f":"M35+M36-M37","v":16}]
[{"$nulls":11},"nb participants ",{"$f":"41-M38","v":25}]
[]
[]
[{"$nulls":14},"Personnes tirées au sort","Volontaires"]
[{"$nulls":14},7,3]
[{"$nulls":11},"Raisons du départ",{"$nulls":3},1]
[{"$nulls":11},"manque de disponibilité",10,null,1]
[{"$nulls":11},"désaccords",1,null,1]
[{"$nulls":11},"génée par la connotation politique de certains propos dans le groupe",1,null,1]
[{"$nulls":11},"il faudrait un accompagnement",1,null,null,3]
[{"$nulls":11},"jamais de contact ",1,null,{"$f":"SUM(O45:O48)","v":3},{"$f":"SUM(P43:P48)","v":7}]
[{"$nulls":11},"ne s'y retrouve pas ",3]
[{"$nulls":11},"TOTAL",{"$f":"SUM(M45:M50)","v":17}]

{"sheet":"départ  (2)","index":6,"n_rows":34,"n_cols":47,"rows_kept":34}
["Bureau de vote","Quartier","Volontaire /Tiré au sort","Civilité","Nom","Prènom","Rue","Tel","Mail","date naissance","Age","observation","mbre RUCHER CITOYEN","raison départ"]
[4,"Chêne Vert / Paperie","TAS","Madame","KUM--BORE  ","Emmanuelle","95 rue de la Reux","06 35 59 81 18","manudu49@orange.fr",1993,30,"SMS et tel : non dispo intérêt pour actions ponctuelles de collectes solidaires","FIN LE 7/08/23","aucune participation"]
[1,"Chêne Vert / Paperie","TAS","Madame","BOSSARD ","Mathilde","7 rue Modeste Renioult","06 50 53 17 16",null,null,31,"aucun retour : mail - tel -courrier","aucune nouvelle","aucune participation"]
[null,"Gemmetrie","V","Monsieur","PETIT","Marc ","107 rue de la Gemmetrie",{"v":677260815,"d":"06 77 26 08 15"},"marco.petit49@orange.fr",1950,{"$f":"2023-J4","v":73},"Arrivée : mail 27/03 + tel Y Bignonet \ninfo par RDV : épuisé + ses désaccard d'hier et tjs présents ne rendent plus possible sa participation","Départ le 31/05/24","désaccords"]
[6,"Gemmetrie","TAS","Madame","MARTIN ","Nicole","69 rue de la Gemmetrie",{"v":677717570,"d":"06 77 71 75 70"},"chremarti@orange.fr",1949,{"$f":"2023-J5","v":74},"son marie avait été tiré au sort, \npb / côté politique présent dans le groupe Environnement 1ère rencontre; était ref du groupe","fin le 15/01/24","géné par la conotation politique de certains propos dans le groupe"]
[3,"Chêne Vert / Paperie","TAS","Madame","Madame","HEINRY  ","Micheline","1 rue des Lilas","06 77 65 66 45","NON",1951,"Anita / difficulté de compréhension et il faudrait un accompagnement -  - 16 octobre","départ le 6/06/par sms","il faudrait un accompagnement"]
[null,"Jaudette / Morlière","TAS","Madame","LENOIR  ","Sylvie","6 allée Jean Philippe Rameau","06 74 81 39 21","sylvie.lenoir.04@gmail.com",1958,{"$f":"2023-J7","v":65},"réserve / dispo et en effet trop prise par famille (maman et petit enfant + engagement bénévole)","fin le1/09/23","manque de disponibilité"]
[1,"Jaudette / Morlière","TAS","Monsieur","RICHARD  ","Patrick","27 rue du chenin Blanc","06 14 59 19 65","patrick.richard924@orange.fr",1948,{"$f":"2023-1948","v":75},"trop pris par d'autres engagements mais \"bartholoméen convaincu\"","fin le 11/09/23","manque de disponibilité"]
[8,"Gemmetrie","TAS","Monsieur","ZENIT  ","Pascal","122 rue de la Gemmetrie","06 81 02 60 92","pascal.zenit@sfr.fr",1957,{"$f":"2023-J9","v":66},"Mme Rimbault arrêt / pb de santé","Fin le 10/10/2023","manque de disponibilité"]
[4,"Claverie / Banchais","TAS","Monsieur","COUSIN  ","Mario","35 rue des Claveries",{"v":679648013,"d":"06 79 64 80 13"},"mario.cousin@wanadoo.fr",1971,{"$f":"2023-J10","v":52},"dif pour lui de se libérer : travaille souvent tard et le samedi ","Fin le 16/10/23","manque de disponibilité"]
[4,"Jaudette / Morlière","TAS","Monsieur","VIEZ ","Philippe","43 Bis Route de Beaufort","06 18 96 64 60","philippe.viez@free.fr",1960,{"$f":"2023-J11","v":63},"raisons perso (médical et travail)","fin le 4/03","manque de disponibilité"]
[2,"Gemmetrie","TAS","Madame","HODE   ","Christine ","43 Rue Jean Jaurès",{"v":678232112,"d":"06 78 23 21 12"},"hodechristine@yahoo.fr ",1965,{"$f":"2023-J12","v":58},"pas assez disponible","tel le 5/04","manque de disponibilité"]
[5,"Grand Centre","TAS","Monsieur","RENAUD AUBINEAU  ","Guillaume","27 rue François Mauriac","07 55 01 97 17","renaudguillaume49@gmail.com",2004,20,"A passé son permis, puis formation en sept 2024 : trop difficile de concilier les 2","Maryline","manque de disponibilité"]
[8,"Grand Centre","V","Madame","REGUER","Jehanne","23 rue de la Croix de cheminée","06 24 36 06 73","reguerjehanne@gmail.com","2000",{"$f":"2023-J14","v":23},"a participer à l'écriture de la Charte mais difficile de conjuguer études et Rucher Citoyen","Fin le 18/10/2023","manque de disponibilité"]
[6,"Gemmetrie","V","Monsieur","JOBIN","Maxance","48 rue de la Gemmetrie","06 17 37 08 79","maxancejobin@gmail.com","2002",{"$f":"2023-J15","v":21},"manque de disponibilité","Fin 16/11 : départ à l'étranger","manque de disponibilité",{"$nulls":15},1,null,0,0,1,{"$nulls":6},1,null,{"$f":"SUM(Tableau22[[#This Row],[groupe CITOYENNETE]:[Groupe\nMOBILITE-DEPLACEMENT]])","v":1}]
[4,"Gemmetrie","V","Madame","PAREYN","Lise",null,{"v":650528070,"d":"06 50 52 80 70"},"l.pareyn@hotmail.fr","jeunesse",35,"A participé à la mise en place de la démarche participative et fait partie de la CEM","Fin 16/11 : enceinte et peu dispo reste à la CEM","manque de disponibilité",{"$nulls":15},"huitres",null,"galettes",1,1,1,1,1,null,1,{"$nulls":3},0,null,{"$f":"SUM(#REF!)","v":{"$error":"#REF!"}}]
[2,"Gemmetrie","TAS","Monsieur","COSTES  ","Christian","82 rue de la Gemmetrie","06 24 86 45 18","chriscostes@orange.fr",1949,{"$f":"2023-J17","v":74},"départ le 16/05/2024: veut de l'action et pas en accord avec la procédure d'avancement d'un collectif - projet de webradio","mails envoyés à D Vicente et au maire","ne s'y retrouve pas",{"$nulls":15},"X",1,null,null,"non",1,1,1,1,1,null,1,{"$nulls":3},1,{"$f":"SUM(Tableau22[[#This Row],[groupe CITOYENNETE]:[Groupe\nMOBILITE-DEPLACEMENT]])","v":1}]
[3,"Gemmetrie","V","Monsieur","GRIFFON","Jean-François","14 impasse de la Moricerie","06 80 17 32 89","jean-francois.griffon@sfr.fr","1952",71," transport solidaire / vu le 7/08 : ne souhaite pas participer sauf sur civisme","FIN LE 7/08/23","ne s'y retrouve pas","X",{"$nulls":15},"abs",null,1,"?",1,1,1,{"$nulls":6},1,null,{"$f":"SUM(Tableau22[[#This Row],[groupe CITOYENNETE]:[Groupe\nMOBILITE-DEPLACEMENT]])","v":2}]
[7,"Jaudette / Morlière","V","Monsieur","BRILLET","Albert","36 rue des Closiers","02 41 93 35 37",null,"1948",{"$f":"2023-J19","v":75},"ne s'y retrouve pas, ses proets ne correspondent pas","fin le 19/02","ne s'y retrouve pas"]
[null,"Grand Centre","TAS","Monsieur","MASSON "," Gildas ","11 Rue Cezanne","06 89 32 31 39","gildas.masson49@orange.fr","1945-05-01","1978-11-05","gr déplacement, a participé à 1 réunion 2024 / pb de santé","2024-10-01","pb de santé",null,null,"gr déplacement, a participé à 1 réunion","oui",null,"gildas.masson49@orange.fr","06 89 32 31 39",1,{"$nulls":24},1]
[7,"Grand Centre","TAS","Monsieur","GOULET","Teddy ","11 Rue de Verdun","06 63 25 39 44","goulet.teddy@laposte.net","15/09/76","47","Venu le 9 juillet 2024- centralité 2024\nensuite aucune réponse aux mails, tel, sms","2024-10-01","aucune participation",null,null,"Venu le 9 juillet - centralité","OUI",null,"goulet_teddy@laposte.net","06 63 25 39 44",{"$nulls":24},"1"]
[3,"Chêne Vert / Paperie","v","Madame","DUBOT RICHARD","Bénédicte","21 rue des Cordelles","06 35 19 51 77","benedicte.dubot@live.fr","1980",{"$f":"2023-J22","v":43},"info par mail le 21 mars, départ par manque de temps + présence en sept 2024 d'une pers qu'elle connait pro","2024-10-01","manque de disponibilité"]
[{"$nulls":10},"le 27/06","départ ",9,"femmes"]
[{"$nulls":12},12,"hommes"]
[{"$nulls":10},"2024-10-09","total ",{"$f":"M23+M24","v":21},"membres"]
[{"$nulls":11},"nb participants "]
[{"$nulls":6},"Raisons du départ",null,null,"Personnes tirées au sort","Volontaires"]
[{"$nulls":5},"raisons :","manque de disponibilité",10,null,7,3,null,null,"Personnes tirées au sort","Volontaires",null,"TRANCHES D'AGES"]
[{"$nulls":5},"2024-10-02","désaccords",1,null,null,1,null,"Femme",6,2]
[{"$nulls":6},"génée par la connotation politique de certains propos dans le groupe",1,null,1,null,null,"Homme",6,4,null,"18 - 34 ans",5]
[{"$nulls":6},"il faudrait un accompagnement",1,null,1,{"$nulls":3},"2024-10-01",null,null,"35 - 54 ans",2]
[{"$nulls":6},"aucune participation ",2,null,2,{"$nulls":6},"55 -69 ans",4]
[{"$nulls":6},"ne s'y retrouve pas ",3,null,1,2,{"$nulls":5},"70 ans et plus",7]
[{"$nulls":6},"TOTAL",{"$f":"SUM(H28:H33)","v":18},null,{"$f":"SUBTOTAL(9,J28:J33)","v":12},{"$f":"SUBTOTAL(9,K28:K33)","v":6},{"$nulls":6},{"$f":"SUM(R30:R33)","v":18}]

{"sheet":"Réunions","index":7,"n_rows":22,"n_cols":10,"rows_kept":22}
[null,"Nb de rencotnre","Nb de participants\nen moyenne","17/06/2023 avec 2 séances de rattrapage","7/10/2023 avec 1 séance de rattrapage","2024-02-10","moyenne","point le 2 octobre 2024"]
["Plénière ",3,{"$f":"G2","v":{"v":26.333333333333332,"d":"26"}},32,27,20,{"$f":"(F2+E2+D2)/B2","v":{"v":26.333333333333332,"d":"26"}}]
[]
["Réunion en groupe thèmatique","Nb de rencotnre","Nb de participants en moyenne","nb de participants","prépa plénière oct 23","prépa plénière 2/10"]
["Charte du Rucher Citoyen",2,5,10]
["Répartition financière",1,5,5]
["Préparation Plénière",2,{"$f":"(E7+F7)/B7","v":6},12,4,8]
["Séance de rattrapage ",3,2,6]
["Réunion de présentation aux personnes tirées au sort ",1,6,6]
["préparation du 1er anniversaire",3,3,9]
["Total ",{"$f":"SUM(B5:B10)","v":12},{"$f":"SUM(C5:C10)","v":27},{"$f":"SUM(D5:D10)","v":48}]
["Moyenne",null,null,{"$f":"D11/B11","v":4}]
[]
[]
["Groupe","Gr entier","sous-groupe","avec les élus référents","avec des techniciens  Ville","avec élus et techniciens","partenariat","Total"]
["centralité",4,null,1,null,null,4,{"$f":"SUM(B16:G16)","v":9},null,"partenariat centralité : visio présentation, 1 temps avec les étudiants, 2 restitutions"]
["Citoyenneté",8,null,1,{"$nulls":3},{"$f":"SUM(B17:G17)","v":9}]
["Déplacement",5,2,1,{"$nulls":3},{"$f":"SUM(B18:G18)","v":8},null,"sous gr : repérage "]
["Dynamique socioprofessionnelle",3,null,1,null,null,1,{"$f":"SUM(B19:G19)","v":5},null,"partenaire : ALDEV"]
["Environnement",9,5,1,2,1,3,{"$f":"SUM(B20:G20)","v":21},null,"sous gr : 1 repérage en binome, 2 RDV avec Michaël, , 1 pour les orchidées, 1 visite sur place pour les Cordelles\npartenaire : 3 visites pour l'école de la Jaudette"]
["Moyenne sur 12 mois",{"$f":"B22/5","v":5.8},1.4,1,0.4,0.2,1.6,10.4]
["total",{"$f":"B16+B17+B18+B19+B20","v":29},7,5,2,1,8,52]

{"sheet":"départ ","index":8,"n_rows":30,"n_cols":46,"rows_kept":30}
["Bureau de vote","Quartier","Volontaire /Tiré au sort","Civilité","Nom","Prènom","Rue","Tel","Mail","date naissance","Age","observation","mbre RUCHER CITOYEN","raison départ"]
[4,"Gemmetrie","V","Monsieur","GRIFFON","Jean-François","14 impasse de la Moricerie","06 80 17 32 89","jean-francois.griffon@sfr.fr","1952",71," transport solidaire / vu le 7/08 : ne souhaite pas participer sauf sur civisme","FIN LE 7/08/23","ne s'y retrouve pas"]
[1,"Chêne Vert / Paperie","TAS","Madame","KUM--BORE  ","Emmanuelle","95 rue de la Reux","06 35 59 81 18","manudu49@orange.fr",1993,30,"SMS et tel : non dispo intérêt pour actions ponctuelles de collectes solidaires","FIN LE 7/08/23","manque de disponibilité"]
[null,"Jaudette / Morlière","TAS","Madame","LENOIR  ","Sylvie","6 allée Jean Philippe Rameau","06 74 81 39 21","sylvie.lenoir.04@gmail.com",1958,{"$f":"2023-J4","v":65},"réserve / dispo et en effet trop prise par famille (maman et petit enfant + engagement bénévole)","fin le1/09/23","manque de disponibilité"]
[6,"Jaudette / Morlière","TAS","Monsieur","RICHARD  ","Patrick","27 rue du chenin Blanc","06 14 59 19 65","patrick.richard924@orange.fr",1948,{"$f":"2023-1948","v":75},"trop pris par d'autres engagements mais \"bartholoméen convaincu\"","fin le 11/09/23","manque de disponibilité"]
[3,"Chêne Vert / Paperie","TAS","Madame","BOSSARD ","Mathilde","7 rue Modeste Renioult","06 50 53 17 16",null,null,31,"aucun retour : mail - tel -courrier","aucune nouvelle","jamais de contact"]
[null,"Gemmetrie","TAS","Monsieur","ZENIT  ","Pascal","122 rue de la Gemmetrie","06 81 02 60 92","pascal.zenit@sfr.fr",1957,{"$f":"2023-J7","v":66},"Mme Rimbault arrêt / pb de santé","Fin le 10/10/2023","manque de disponibilité"]
[1,"Grand Centre","V","Madame","REGUER","Jehanne","23 rue de la Croix de cheminée","06 24 36 06 73","reguerjehanne@gmail.com","2000",{"$f":"2023-J8","v":23},"a participer à l'écriture de la Charte mais difficile de conjuguer études et Rucher Citoyen","Fin le 18/10/2023","manque de disponibilité"]
[8,"Claverie / Banchais","TAS","Monsieur","COUSIN  ","Mario","35 rue des Claveries",{"v":679648013,"d":"06 79 64 80 13"},"mario.cousin@wanadoo.fr",1971,{"$f":"2023-J9","v":52},"dif pour lui de se libérer : travaille souvent tard et le samedi ","Fin le 16/10/23","manque de disponibilité"]
[4,"Gemmetrie","V","Monsieur","JOBIN","Maxance","48 rue de la Gemmetrie","06 17 37 08 79","maxancejobin@gmail.com","2002",{"$f":"2023-J10","v":21},"manque de disponibilité","Fin 16/11 : départ à l'étranger","manque de disponibilité"]
[4,"Gemmetrie","V","Madame","PAREYN","Lise",null,{"v":650528070,"d":"06 50 52 80 70"},"l.pareyn@hotmail.fr","jeunesse",35,"A participé à la mise en place de la démarche participative et fait partie de la CEM","Fin 16/11 : enceinte et peu dispo reste à la CEM","manque de disponibilité"]
[2,"Gemmetrie","TAS","Madame","MARTIN ","Nicole","69 rue de la Gemmetrie",{"v":677717570,"d":"06 77 71 75 70"},"chremarti@orange.fr",1949,{"$f":"2023-J12","v":74},"son marie avait été tiré au sort, \npb / côté politique présent dans le groupe Environnement 1ère rencontre; était ref du groupe","fin le 15/01/24","géné par la conotation politique de certains propos dans le groupe"]
[5,"Jaudette / Morlière","V","Monsieur","BRILLET","Albert","36 rue des Closiers","02 41 93 35 37",null,"1948",75,"ne s'y retrouve pas, ses proets ne correspondent pas","fin le 19/02","ne s'y retrouve pas"]
[8,"Jaudette / Morlière","TAS","Monsieur","VIEZ ","Philippe","43 Bis Route de Beaufort","06 18 96 64 60","philippe.viez@free.fr",1960,63,"raisons perso (médical et travail)","fin le 4/03","manque de disponibilité"]
[6,"Gemmetrie","TAS","Madame","HODE   ","Christine ","43 Rue Jean Jaurès",{"v":678232112,"d":"06 78 23 21 12"},"hodechristine@yahoo.fr ",1965,58,"pas assez disponible","tel le 5/04","manque de disponibilité",{"$nulls":6},1,1,{"$nulls":4},"X","excusée",null,1,null,0,0,1,{"$nulls":6},1,null,{"$f":"SUM(Tableau22[[#This Row],[groupe CITOYENNETE]:[Groupe\nMOBILITE-DEPLACEMENT]])","v":1}]
[4,"Gemmetrie","TAS","Monsieur","COSTES  ","Christian","82 rue de la Gemmetrie","06 24 86 45 18","chriscostes@orange.fr",1949,74,"départ le 16/05/2024: veut de l'action et pas en accord avec la procédure d'avancement d'un collectif - projet de webradio","mails envoyés à D Vicente et au maire","ne s'y retrouve pas",{"$nulls":4},0,1,0,1,1,"2023-07-05",null,null,"X","X",1,"huitres",null,"galettes",1,1,1,1,1,null,1,{"$nulls":3},0,null,{"$f":"SUM(#REF!)","v":{"$error":"#REF!"}}]
[2,"Gemmetrie","V","Monsieur","PETIT","Marc ","107 rue de la Gemmetrie",{"v":677260815,"d":"06 77 26 08 15"},"marco.petit49@orange.fr",1950,73,"Arrivée : mail 27/03 + tel Y Bignonet \ninfo par RDV : épuisé + ses désaccard d'hier et tjs présents ne rendent plus possible sa participation","Départ le 31/05/24","désaccords",{"$nulls":5},0,null,null,0,null,null,"2023-07-05",null,null,"X","X",1,null,null,"non",1,1,1,1,1,null,1,{"$nulls":3},1,{"$f":"SUM(Tableau22[[#This Row],[groupe CITOYENNETE]:[Groupe\nMOBILITE-DEPLACEMENT]])","v":1}]
[3,"Chêne Vert / Paperie","TAS","Madame","Madame","HEINRY  ","Micheline","1 rue des Lilas","06 77 65 66 45","NON",1951,"Anita / difficulté de compréhension et il faudrait un accompagnement -  - 16 octobre","départ le 6/06/par sms","il faudrait un accompagnement","X",{"$nulls":15},"abs",null,1,"?",1,1,1,{"$nulls":6},1,null,{"$f":"SUM(Tableau22[[#This Row],[groupe CITOYENNETE]:[Groupe\nMOBILITE-DEPLACEMENT]])","v":2}]
[{"$nulls":10},"le 27/06","départ ",8,"femmes"]
[{"$nulls":12},9,"hommes"]
[{"$nulls":11},"total ",{"$f":"M19+M20-#REF!","v":{"$error":"#REF!"}},"membres"]
[{"$nulls":11},"nb participants ",{"$f":"41-M21","v":{"$error":"#REF!"}}]
[{"$nulls":6},"Raisons du départ",null,null,"Personnes tirées au sort","Volontaires"]
[{"$nulls":5},"raisons :","manque de disponibilité",10,null,7,3]
[{"$nulls":5},"2024-06-27","désaccords",1,null,null,1]
[{"$nulls":6},"génée par la connotation politique de certains propos dans le groupe",1,null,1]
[{"$nulls":6},"il faudrait un accompagnement",1,null,1]
[{"$nulls":6},"jamais de contact ",1,null,1]
[{"$nulls":6},"ne s'y retrouve pas ",3,null,null,3]
[{"$nulls":6},"TOTAL",{"$f":"SUM(H24:H29)","v":17},null,{"$f":"SUM(J26:J29)","v":3},{"$f":"SUM(K24:K29)","v":7}]

{"sheet":" interêt","index":9,"n_rows":14,"n_cols":17,"rows_kept":14}
["Bureau de vote","Quartier","Volontaire /Tiré au sort","Civilité","Nom","Prènom","Rue","Tel","Mail","date naissance","Age",null,null,"observation","date","mbre RC","participation le 9 juillet"]
[null,null,"idée",null,"SABIN","André","32 rue Pierre de Coubertin","06 82 35 81 72",{"$nulls":3},"planter des arbres","nature","sous curatelle et voudrait participer financièrement à la plantation d'arbres",2023]
[null,null,"TAS","Madame","ESTIENNEY","Brigille","Asso l'art du Qi Gong",null,"artduqigong.stbarth@gmail.com",null,null,"intervention du professeur en cardiologie au CHU de Rennes François Carré","santé-alimentation","vu lors de la Faites du sport\nrecherche salle pour conférence autour de l'alimentation","2023 Faites du sport "]
[null,null,"TAS","Madame","MARGOLLE"," Elodie Marjorie","12 RUE DES GLYCINES","06  81 89 03 65","elodiemargolle@yahoo.fr","1980-04-21","1942-11-18",null,null,"groupe ponctuel sur : incivilité, respect des lieux et propreté et entraide intergénérationnel","2023 TAS"]
[null,null,"TAS","Madame","PLOUHINEC (LEMEUNIER)"," Chantal Marie","11 RUE DE LA GEMMETRIE","06-83-73-76-46","jacques.lemeunier0607@orange.fr","1950-07-06","1972-09-03",null,null,"non  mais intéressée, pas dispo","2023 TAS"]
[null,null,"TAS","Madame","GUIDEAU"," Lucie Valérie Michèle","23 RUE DES CORDELLES",null,null,"1989-01-20","1934-02-17",null,null,"investie école privée, pas dispo à court terme","2023 TAS"]
[null,null,"TAS","Monsieur","POIRIER"," Baptiste Edouard","RUE DE LA RICHARDIERE - La Foresterie","06 61 32 85 85","poirier.baptiste@hotmail.fr","1988-01-04","1935-03-06",null,null,"TEL le 3 juillet 2023, intéressé pour participer au Rucher citoyen","2023 TAS","2023-06-01"]
[null,null,"V","Monsieur","MORIN","Marcel","12 rue du 11 nov","06 30 23 60 02","mmorin51@orange.fr",null,"65 - 70",null,null,"ami de Philippe Brard - début 2024","2024 Fev","Juil 24 déplacements",1]
[null,"Gemmetrie","V","Madame","BARRE","Cathy","rue de l'Aubépine","06 88 17 72 38","cathybarre@hotmail.fr",1980,{"$f":"2023-J9","v":43},null,null,"intéressée pour être volontaire, info via Bénédicte DT et article janv 2024 Info St Barth - tel le 27/03/23","2024 Fev","Juil 24 DSP",1]
[null,"Banchais","V","Madame","KLEIN","Pauline",null,"07 65 87 05 23","pauline.klein6792@gmail.com",null,31,null,"environnement","vu lors Renc-arts 2024\nnouvelle habitante - quartier Banchais ","2024 Renc-arts ","Juil 24 écologie - déplacements",1]
[null,null,"V","Madame","DELSALLE","Julie","43 rue Pierre de Coubertin","06 17 31 03 06","juliedelsalle@sfr.fr",{"$nulls":4},"est passée lors des Renc-arts 2024","2024 Renc-arts ","Juil 24 écologie - citoyenneté",1]
[null,null,"V","Madame","ESCUDEIRO","Anne",null,"06 15 85 15 09","anne.escudeiro@gmail.com",{"$nulls":4},"est passée lors des Renc-arts 2024","2024 Renc-arts "]
[null,null,"TAS","Madame","OURIOU","Virginie",null,"07 86 62 97 83","vpouriou@hotmail.fr",null,null,"aimerait faire le tour des groupes",null,"TAS, tel à Aline + Renc-arts 2024","2024 TAS ","2024-06-01",0]
[null,null,"V","Madame","RAPICAULT","Carine",null,null,"rapicault.carine18@gmail.com",{"$nulls":4},"Venue à un café citoyen de mai 2024"]

{"sheet":"Rucher Citoyen contact","index":10,"n_rows":35,"n_cols":5,"rows_kept":35}
["Nom","Prénom","Rue","Tel","Mail"]
["BOILEAU","Pascal","5 allée Jean Philippe Rameau",{"v":618313466,"d":"06 18 31 34 66"},"pascal.boileau27@sfr.fr"]
["BOUCHEE","Florian","31 rue David d'Angers ",{"v":631918078,"d":"06 31 91 80 78"},"florian.bouchee@gmail.com"]
["BOUMIER  ","Michel","5 RUE DAVID D'ANGERS","06 75 80 40 15","mc.boumier@wanadoo.fr"]
["BOUREAU  ","Laurence","35 RUE DES CLOSIERS","06 86 72 83 09","laurence.boureau16@gmail.com"]
["BRARD  ","Philippe","24 RUE DE LA TAILLANDERIE","06 11 48 85 36","brard.philippe.1@gmail.com"]
["BRILLET","Albert","36 rue des Closiers","02 41 93 35 37"]
["BUGEY ","Jean-Pierre","LA HUETTERIE","06 38 79 77 05","jpbugey@gmail.com"]
["CHATAIGNER","Coco","8 rue du Pressoir","06 07 58 10 90","cocochataigner@wanadoo.fr"]
["COSTES  ","Christian","82 RUE DE LA GEMMETRIE","06 24 86 45 18","chriscostes@orange.fr"]
["COUEDEL","Pascal","31 rue de Walcourt","06 29 97 53 59","couedelp31@laposte.net"]
["DE TOUZALIN","Bénédicte","18 rue de la Huetterie",{"v":679585093,"d":"06 79 58 50 93"},"bploye@hotmail.fr"]
["DHOTEL  ","Françoise","8 RUE JEAN LURCAT",{"v":698441186,"d":"06 98 44 11 86"},"francoise.dhotel@gmail.com"]
["DUBOT RICHARD","Bénédicte","21 rue des Cordelles","06 35 19 51 77","benedicte.dubot@live.fr"]
["GUICHARD","Monique","362 rue de la Richardière, Lieu dit Le puits des Bulleterie","06 26 49 46 04","jlm.guichard@outlook.fr"]
["HEINRY  ","Micheline","1 RUE DES LILAS","06 77 65 66 45"]
["HODE   ","Marie-Christine ","43 Rue Jean Jaurès",{"v":678232112,"d":"06 78 23 21 12"},"hodechristine@yahoo.fr "]
["JEMIN ","Eric","16 RUE DE LA MORELLERIE","06 08 97 54 58","eric.jemin@dao-be.com"]
["JOBIN","Maxance","48 rue de la Gemmetrie","06 17 37 08 79","maxancejobin@gmail.com"]
["JOUSSEAUME  ","Nicolas","120 RUE DU HARDAS","06 62 03 63 03","nico.jouss@hotmail.fr"]
["LE GALLOU","Benjamin","36 rue de la Reux",{"v":651301972,"d":"06 51 30 19 72"},"le.gallou.benjamin@gmail.com"]
["LEGEAI  ","Emily","128 RUE PIERRE ET MARIE CURIE","06 11 56 60 27","emily.legeai@gmail.com"]
["LEMARQUAND","Jacques","4 passage de la malle",{"v":783695778,"d":"07 83 69 57 78"},"jacques.lemarquand@gmail.com"]
["LEVARD","Didier","9 rue de la Gemmetrie, résidence du Cénacle","07 80 54 11 26","dlevard@hotmail.com"]
["LORAND ","Isabelle","11 B rue de Verdun","06 65 42 30 38","lorandpascal@orange.fr"]
["MARTIN ","Nicole","69 RUE DE LA GEMMETRIE",{"v":677717570,"d":"06 77 71 75 70"},"chremarti@orange.fr"]
["MOREAU  ","Thérèse","7 IMPASSE DE LA CHARMILLE","06 74 59 75 65","teresemoreau@orange.fr"]
["NOBLE ","Victor","45 RUE DE LA REUX","06 75 94 87 38","victor.noble.ua@gmail.com"]
["PAREYN","Lise","15 avenue John Kennedy",{"v":650528070,"d":"06 50 52 80 70"},"l.pareyn@hotmail.fr"]
["PETIT","Marc ","107 rue de la Gemmetrie",{"v":677260815,"d":"06 77 26 08 15"},"marco.petit49@orange.fr"]
["POIRIER ","Baptiste","RUE DE LA RICHARDIERE\n LA FORESTERIE","06 61 32 85 85","poirier.baptiste@hotmail.fr"]
["RENAUD AUBINEAU  ","Guillaume","27 RUE FRANCOIS MAURIAC","07 55 01 97 17","renaudguillaume49@gmail.com"]
["SEBTI HEMERY","Mariam","Le bois Boulet",{"v":750428984,"d":"07 50 42 89 84"},"patrick.hemery803@orange.fr"]
["VIAU","Patrice","12 rue de la morellerie ",{"v":612292402,"d":"06 12 29 24 02"},"Patrice-isa.viau@wanadoo.fr "]
["VIEZ ","Philippe","43 BIS ROUTE DE BEAUFORT","06 18 96 64 60","philippe.viez@free.fr"]

{"sheet":"Interview 2023","index":11,"n_rows":9,"n_cols":17,"rows_kept":9}
["TAS V","Bureau de vote","Quartier","Civilité","Nom","Prénom","Tel","Mail","Age","observation","PARTICIPATION 17 JUIN",null,"Interview mag","groupe CITOYENNETE","Groupe\nECOLOGIE\nENVIRONNEMENT","Groupe\nDYNAMIQUE SOCIO-PRO","Groupe\nEVOLUTION VILLE\nMOBILITE-DEPLACEMENT"]
["TAS",5,"Jaudette / Morlière","Madame","BOUREAU  ","Laurence","06 86 72 83 09","laurence.boureau16@gmail.com",58,"abs le 17 juin","Excusée","message","Tirée au sort et quartier\nabsente à la 1ère plénière, mais est venue à la séance de rattrapage",null,1]
["V",6,"St Barth Campagne","Madame","DE TOUZALIN","Bénédicte",{"v":679585093,"d":"06 79 58 50 93"},"bploye@hotmail.fr",34,"Com Extramunicipale - n'a pas reçu le mail du 2 mai d'info date de la 1ère IPC","x","Interview faite","elle a participé à toute la démarche et est membre de la commission extramunicipale",1]
["TAS",8,"Grand Centre","Madame","DHOTEL  ","Françoise",{"v":698441186,"d":"06 98 44 11 86"},"francoise.dhotel@gmail.com",76," connue au VPR","x","non trop tôt","Tirée au sort et quartier\ndynamique et 76 ans",{"$nulls":3},1]
["V",4,"Gemmetrie","Monsieur","JOBIN","Maxance","06 17 37 08 79","maxancejobin@gmail.com",21,null,"x","va partir à l'étranger","jeune, quartier, intéressé, dynamique"]
["V",1,"Chêne Vert / Paperie","Monsieur","LE GALLOU","Benjamin",{"v":651301972,"d":"06 51 30 19 72"},"le.gallou.benjamin@gmail.com",33,null,"x","ok","jeune papa dynamique, très motivé",1]
["TAS",1,"Chêne Vert / Paperie","Monsieur","NOBLE ","Victor","06 75 94 87 38","victor.noble.ua@gmail.com",28,"Christine Huu ","x","ok","jeune, engagé, dynamique, critique positif…",null,null,1]
["V",7,"St Barth Campagne","Madame","SEBTI HEMERY","Mariam",{"v":750428984,"d":"07 50 42 89 84"},"patrick.hemery803@orange.fr",57,null,"X","Interview faite","intéressée, engagée, proche de l'opposition",{"$nulls":3},1]
["TAS",1,"Grand Centre","Monsieur","BRARD  ","Philippe","06 11 48 85 36","brard.philippe.1@gmail.com",61,null,"X","Interview faite","partant, dynamique"]

{"sheet":"Tirage au sort 2024","index":12,"n_rows":27,"n_cols":4,"rows_kept":27,"merged":[[0,0,0,3]]}
["tirage au sort début 2024 - mis à jour le 21 février 2024"]
["QUARTIER","Nb de personnes pour arriver à 40 membres",null,"Nb de personnes à tirer au sort "]
["Chêne Vert / Paperie",{"$f":"stat!E3","v":3},null,{"$f":"B3*4","v":12}]
["Claverie / Banchais",{"$f":"stat!E4","v":6},null,{"$f":"B4*4","v":24}]
["Gemmetrie",{"$f":"stat!E5","v":1},null,4]
["Grand Centre",{"$f":"stat!E6","v":1},null,4]
["Jaudette / Morlière",{"$f":"stat!E7","v":0},null,0]
["St Barth Campagne",{"$f":"stat!E8","v":0},null,0]
["TOTAL",{"$f":"stat!E9","v":11},null,44]
[]
["Répartition par sexe"]
["Femme",{"$f":"stat!D12","v":8},null,32]
["Homme",{"$f":"stat!D13","v":3},null,12]
[]
["TRANCHES D'AGES","Femme"]
["18 - 34 ans",{"$f":"stat!H17","v":3},null,12]
["35 - 54 ans",{"$f":"stat!H18","v":3},null,12]
["55 -69 ans",{"$f":"stat!H19","v":0},null,0]
["70 ans et plus",{"$f":"stat!H20","v":2},null,8]
["TOTAL",{"$f":"stat!H21","v":8},null,32]
[]
["TRANCHES D'AGES","Homme"]
["18 - 34 ans",{"$f":"stat!I17","v":0},null,0]
["35 - 54 ans",{"$f":"stat!I18","v":2},null,8]
["55 -69 ans",{"$f":"stat!I19","v":0},null,0]
["70 ans et plus",{"$f":"stat!I20","v":1},null,4]
["TOTAL",{"$f":"stat!I21","v":3},null,12]

{"sheet":"Tirage au sort 2024 (2)","index":13,"n_rows":35,"n_cols":6,"rows_kept":35,"merged":[[0,0,0,3]]}
["tirage au sort début 2024 - mis à jour le 4 mars 2024"]
["QUARTIER","Nb de personnes pour arriver à 40 membres",null,"Nb de personnes à tirer au sort "]
["Chêne Vert / Paperie",{"$f":"stat!E3","v":3},null,{"$f":"B3*4","v":12}]
["Claverie / Banchais",{"$f":"stat!E4","v":6},null,{"$f":"B4*4","v":24}]
["Gemmetrie",{"$f":"stat!E5","v":1},null,4]
["Grand Centre",{"$f":"stat!E6","v":1},null,4]
["Jaudette / Morlière",{"$f":"stat!E7","v":0},null,0]
["St Barth Campagne",{"$f":"stat!E8","v":0},null,0]
["TOTAL",{"$f":"stat!E9","v":11},null,44]
[]
["Répartition par sexe"]
["Femme",{"$f":"stat!D12","v":8},null,32]
["Homme",{"$f":"stat!D13","v":3},null,12]
[]
["TRANCHES D'AGES","Femme"]
["18 - 34 ans",{"$f":"stat!H17","v":3},null,12]
["35 - 54 ans",{"$f":"stat!H18","v":3},null,12]
["55 -69 ans",{"$f":"stat!H19","v":0},null,0]
["70 ans et plus",{"$f":"stat!H20","v":2},null,8]
["TOTAL",{"$f":"stat!H21","v":8},null,32]
[]
["TRANCHES D'AGES","Homme"]
["18 - 34 ans",{"$f":"stat!I17","v":0},null,0]
["35 - 54 ans",{"$f":"stat!I18","v":2},null,8]
["55 -69 ans",{"$f":"stat!I19","v":0},null,0]
["70 ans et plus",{"$f":"stat!I20","v":1},null,4]
["TOTAL",{"$f":"stat!I21","v":3},null,12]
[]
[]
[]
[null,"emilie Legeay mbre RC"]
[null,"Patrick Viau départ"]
[]
["sur les 29 mbres du RC",null,"TAS",15,"base",24]
[null,null,"V",{"$f":"29-D34","v":14},null,16]